{"text_format":"1","workbook":"xlsx","n_sheets":2,"sheets":["بحث","dates"],"not_rendered":{"charts":0,"images":0,"macros":1,"external_links":0,"defined_names":21,"comments":0,"pivot_tables":0},"unopened":[],"bounds":{"document_bytes":16777216,"sheet_cells":100000,"rows_first":2000,"rows_last":500,"rows_between":2000,"halvings":0,"cell_chars":16384,"cell_head_chars":4096},"cells_cut":0,"cells_raw":0,"read":"whole","date_system":"1900"}

{"sheet":"بحث","index":0,"n_rows":6,"n_cols":14,"rows_kept":6,"cut":false,"hidden":true,"merged":[]}
[]
[]
[null,null,"السنة","رقم البوليصة","O.P","SHIPPER","Reciever","NO. CNTR","LINE","VESSEL","P.O.L","P.O.D","FR","DATE"]
[null,null,2018,"ymeg00028377",{"$f":"IFERROR(INDEX(Register188,SMALL(IF($D$4=BillsNo18,ROW(BillsNo18)),ROW($A$1))-2,3),\"رقم بوليصة غير موجود\")","v":"رقم بوليصة غير موجود"},{"$f":"IFERROR(INDEX(Register188,SMALL(IF($D$4=BillsNo18,ROW(BillsNo18)),ROW($A$1))-2,4),\"رقم بوليصة غير موجود\")","v":"رقم بوليصة غير موجود"},{"$f":"IFERROR(INDEX(Register188,SMALL(IF($D$4=BillsNo18,ROW(BillsNo18)),ROW($A$1))-2,5),\"رقم بوليصة غير موجود\")","v":"رقم بوليصة غير موجود"},{"$f":"IFERROR(INDEX(Register188,SMALL(IF($D$4=BillsNo18,ROW(BillsNo18)),ROW($A$1))-2,6),\"رقم بوليصة غير موجود\")","v":"رقم بوليصة غير موجود"},{"$f":"IFERROR(INDEX(Register188,SMALL(IF($D$4=BillsNo18,ROW(BillsNo18)),ROW($A$1))-2,7),\"رقم بوليصة غير موجود\")","v":"رقم بوليصة غير موجود"},{"$f":"IFERROR(INDEX(Register188,SMALL(IF($D$4=BillsNo18,ROW(BillsNo18)),ROW($A$1))-2,14),\"رقم بوليصة غير موجود\")","v":"رقم بوليصة غير موجود"},{"$f":"IFERROR(INDEX(Register188,SMALL(IF($D$4=BillsNo18,ROW(BillsNo18)),ROW($A$1))-2,8),\"رقم بوليصة غير موجود\")","v":"رقم بوليصة غير موجود"},{"$f":"IFERROR(INDEX(Register188,SMALL(IF($D$4=BillsNo18,ROW(BillsNo18)),ROW($A$1))-2,9),\"رقم بوليصة غير موجود\")","v":"رقم بوليصة غير موجود"},{"$f":"IFERROR(INDEX(Register188,SMALL(IF($D$4=BillsNo18,ROW(BillsNo18)),ROW($A$1))-2,10),\"رقم بوليصة غير موجود\")","v":"رقم بوليصة غير موجود"},{"$f":"IFERROR(INDEX(Register188,SMALL(IF($D$4=BillsNo18,ROW(BillsNo18)),ROW($A$1))-2,1),\"رقم بوليصة غير موجود\")","v":"رقم بوليصة غير موجود"}]
[null,null,2017,962780222,{"$f":"IFERROR(INDEX(Register17,SMALL(IF($D$5=BillsNo17,ROW(BillsNo17)),ROW($A$1))-2,2),\"رقم بوليصة غير موجود\")","v":"رقم بوليصة غير موجود"},{"$f":"IFERROR(INDEX(Register17,SMALL(IF($D$5=BillsNo17,ROW(BillsNo17)),ROW($A$1))-2,4),\"رقم بوليصة غير موجود\")","v":"رقم بوليصة غير موجود"},{"$f":"IFERROR(INDEX(Register17,SMALL(IF($D$5=BillsNo17,ROW(BillsNo17)),ROW($A$1))-2,3),\"رقم بوليصة غير موجود\")","v":"رقم بوليصة غير موجود"},{"$f":"IFERROR(INDEX(Register17,SMALL(IF($D$5=BillsNo17,ROW(BillsNo17)),ROW($A$1))-2,6),\"رقم بوليصة غير موجود\")","v":"رقم بوليصة غير موجود"},{"$f":"IFERROR(INDEX(Register17,SMALL(IF($D$5=BillsNo17,ROW(BillsNo17)),ROW($A$1))-2,5),\"رقم بوليصة غير موجود\")","v":"رقم بوليصة غير موجود"},{"$f":"IFERROR(INDEX(Register17,SMALL(IF($D$5=BillsNo17,ROW(BillsNo17)),ROW($A$1))-2,7),\"رقم بوليصة غير موجود\")","v":"رقم بوليصة غير موجود"},{"$f":"IFERROR(INDEX(Register17,SMALL(IF($D$5=BillsNo17,ROW(BillsNo17)),ROW($A$1))-2,8),\"رقم بوليصة غير موجود\")","v":"رقم بوليصة غير موجود"},{"$f":"IFERROR(INDEX(Register17,SMALL(IF($D$5=BillsNo17,ROW(BillsNo17)),ROW($A$1))-2,9),\"رقم بوليصة غير موجود\")","v":"رقم بوليصة غير موجود"},{"$f":"IFERROR(INDEX(Register17,SMALL(IF($D$5=BillsNo17,ROW(BillsNo17)),ROW($A$1))-2,10),\"رقم بوليصة غير موجود\")","v":"رقم بوليصة غير موجود"},{"$f":"IFERROR(INDEX(Register17,SMALL(IF($D$5=BillsNo17,ROW(BillsNo17)),ROW($A$1))-2,1),\"رقم بوليصة غير موجود\")","v":"رقم بوليصة غير موجود"}]
[null,null,2016,"sokhod160000189",{"$f":"IFERROR(INDEX(Register188,SMALL(IF($D$4=BillsNo18,ROW(BillsNo18)),ROW($A$1))-2,3),\"رقم بوليصة غير موجود\")","v":"رقم بوليصة غير موجود"},{"$f":"IFERROR(INDEX(Register16,SMALL(IF($D$6=BillsNo16,ROW(BillsNo16)),ROW($A$1))-2,4),\"رقم بوليصة غير موجود\")","v":"رقم بوليصة غير موجود"},{"$f":"IFERROR(INDEX(Register16,SMALL(IF($D$6=BillsNo16,ROW(BillsNo16)),ROW($A$1))-2,3),\"رقم بوليصة غير موجود\")","v":"رقم بوليصة غير موجود"},{"$f":"IFERROR(INDEX(Register16,SMALL(IF($D$6=BillsNo16,ROW(BillsNo16)),ROW($A$1))-2,6),\"رقم بوليصة غير موجود\")","v":"رقم بوليصة غير موجود"},{"$f":"IFERROR(INDEX(Register16,SMALL(IF($D$6=BillsNo16,ROW(BillsNo16)),ROW($A$1))-2,5),\"رقم بوليصة غير موجود\")","v":"رقم بوليصة غير موجود"},{"$f":"IFERROR(INDEX(Register16,SMALL(IF($D$6=BillsNo16,ROW(BillsNo16)),ROW($A$1))-2,7),\"رقم بوليصة غير موجود\")","v":"رقم بوليصة غير موجود"},{"$f":"IFERROR(INDEX(Register16,SMALL(IF($D$6=BillsNo16,ROW(BillsNo16)),ROW($A$1))-2,8),\"رقم بوليصة غير موجود\")","v":"رقم بوليصة غير موجود"},{"$f":"IFERROR(INDEX(Register16,SMALL(IF($D$6=BillsNo16,ROW(BillsNo16)),ROW($A$1))-2,9),\"رقم بوليصة غير موجود\")","v":"رقم بوليصة غير موجود"},{"$f":"IFERROR(INDEX(Register16,SMALL(IF($D$6=BillsNo16,ROW(BillsNo16)),ROW($A$1))-2,10),\"رقم بوليصة غير موجود\")","v":"رقم بوليصة غير موجود"},{"$f":"IFERROR(INDEX(Register16,SMALL(IF($D$6=BillsNo16,ROW(BillsNo16)),ROW($A$1))-2,1),\"رقم بوليصة غير موجود\")","v":"رقم بوليصة غير موجود"}]

{"sheet":"dates","index":1,"n_rows":26,"n_cols":8,"rows_kept":26,"cut":false,"hidden":false,"merged":[]}
[null,"الايام مكررة و بدون ترتيب\nجدول رقم (1)",null,"الايام مرتبة تصاعدى\n بدون تكرار",null,"الايام مرتبة تنازلى\n بدون تكرار","Start_date","end_date"]
[null,null,null,null,null,null,"2019-04-12","2019-04-18"]
[null,"2019-04-08",null,"2019-12-04",null,"18/04/2019"]
[null,"2019-04-15",null,"13/04/2019",null,"17/04/2019"]
[null,"2019-04-13",null,"14/04/2019",null,"16/04/2019"]
[null,"2019-04-12",null,"15/04/2019",null,"15/04/2019"]
[null,null,null,"16/04/2019",null,"14/04/2019"]
[null,"2019-04-12",null,"17/04/2019",null,"13/04/2019"]
[null,"2019-04-17"]
[null,"2019-04-11"]
[null,"2019-04-10"]
[null,"2019-04-10"]
[null,"2019-04-12"]
[null,"2019-04-14"]
[null,"2019-04-09"]
[null,"2019-04-13"]
[null,"2019-04-14"]
[null,"2019-04-16"]
[null,"2019-04-15"]
[null,"2019-04-16"]
[null,"2019-04-18"]
[null,"2019-04-17"]
[]
[null,"2019-04-20"]
[null,"2019-04-19"]
[null,"2019-04-19"]